fUST/lending_fUST_20241220
["ID","MTS","AMOUNT","RATE_DAILY","PERIOD"]
[346076242,1734693077378,-500.0,0.00023013,6]
[346076243,1734693077387,-500.0,0.00023013,6]
[346076244,1734693077396,-500.0,0.00023013,6]
[346076245,1734693077406,-500.0,0.00023013,6]
[346076246,1734693077417,-500.0,0.00023013,6]
[346076247,1734693077431,-902.08,0.00023013,6]
[346076248,1734693077442,-500.0,0.00023013,6]
[346076249,1734693077478,-500.0,0.00023013,6]
[346076250,1734693077495,-1667.53,0.00023013,6]
[346076251,1734693077506,-500.0,0.00023013,6]
[346076252,1734693077516,-500.0,0.00023013,6]
[346076253,1734693077525,-744.530375,0.00023013,7]
[346076254,1734693077535,-580.22,0.00023013,6]
[346076255,1734693077545,-1293.82,0.00023013,6]
[346076256,1734693077554,-500.0,0.00023013,6]
[346076257,1734693077563,-512.39170351,0.00023013,6]
[346076258,1734693077573,-500.0,0.00023013,6]
[346076259,1734693077582,-500.0,0.00023013,6]
[346076260,1734693077592,-1211.12,0.00023013,6]
[346076261,1734693077601,-500.0,0.00023013,6]
[346076262,1734693077611,-500.0,0.00023013,6]
[346076263,1734693077620,-500.0,0.00023013,6]
[346076264,1734693077630,-500.0,0.00023013,6]
[346076265,1734693077640,-510.23,0.00023013,6]
[346076266,1734693077650,-500.0,0.00023013,6]
[346076267,1734693077659,-988.28,0.00023013,6]
[346076268,1734693077670,-2509.21,0.00023013,6]
[346076269,1734693077680,-1456.58,0.00023013,6]
[346076270,1734693077689,-664.27,0.00023013,6]
[346076271,1734693077704,-500.0,0.00023013,6]
[346076272,1734693077714,-1215.59,0.00023013,6]
[346076273,1734693077723,-1202.07,0.00023013,6]
[346076274,1734693077732,-500.0,0.00023013,6]
[346076275,1734693077742,-500.0,0.00023013,6]
[346076276,1734693077752,-500.0,0.00023013,6]
[346076277,1734693077762,-500.0,0.00023013,6]
[346076278,1734693077771,-500.0,0.00023013,6]
[346076279,1734693077781,-500.0,0.00023013,6]
[346076280,1734693077791,-870.43,0.00023013,6]
[346076281,1734693077801,-500.0,0.00023013,6]
[346076282,1734693077811,-500.0,0.00023013,6]
[346076283,1734693077820,-500.0,0.00023013,6]
[346076284,1734693077830,-500.0,0.00023013,6]
[346076285,1734693077839,-518.23953787,0.00023013,6]
[346076286,1734693077851,-500.0,0.00023013,6]
[346076287,1734693077860,-500.0,0.00023013,6]
[346076288,1734693077869,-534.47,0.00023013,6]
[346076289,1734693077879,-500.0,0.00023013,6]
[346076290,1734693077889,-500.0,0.00023013,6]
[346076291,1734693077898,-500.0,0.00023013,6]
[346076292,1734693077907,-502.58810037,0.00023013,6]
[346076293,1734693077916,-258.234953,0.00023013,7]
[346076294,1734693077925,-151.0,0.00023013,7]
[346076295,1734693077935,-500.0,0.00023013,6]
[346076296,1734693077944,-503.33037475,0.00023013,6]
[346076297,1734693077957,-258.234953,0.00023013,7]
[346076298,1734693077966,-500.0,0.00023013,6]
[346076299,1734693077975,-663.44,0.00023013,6]
[346076300,1734693077985,-644.54,0.00023013,6]
[346076301,1734693077994,-500.0,0.00023013,6]
[346076302,1734693078004,-1000.0,0.00023013,7]
[346076303,1734693078013,-1000.0,0.00023013,7]
[346076304,1734693078023,-1000.0,0.00023013,7]
[346076305,1734693078033,-1000.0,0.00023013,7]
[346076306,1734693078043,-1000.0,0.00023013,7]
[346076307,1734693078052,-242.92261073,0.00023013,6]
[346076308,1734693078062,-1000.0,0.00023013,7]
[346076309,1734693078071,-500.0,0.00023013,6]
[346076310,1734693078081,-1000.0,0.00023013,7]
[346076311,1734693078091,-1000.0,0.00023013,7]
[346076312,1734693078100,-1000.0,0.00023013,7]
[346076313,1734693078109,-500.0,0.00023013,6]
[346076314,1734693078119,-1000.0,0.00023013,7]
[346076315,1734693078128,-1000.0,0.00023013,7]
[346076316,1734693078137,-1000.0,0.00023013,7]
[346076317,1734693078147,-200.0,0.00023013,6]
[346076318,1734693078156,-1000.0,0.00023013,7]
[346076319,1734693078167,-1000.0,0.00023013,7]
[346076320,1734693078176,-1000.0,0.00023013,7]
[346076321,1734693078186,-1000.0,0.00023013,7]
[346076322,1734693078195,-1000.0,0.00023013,7]
[346076323,1734693078208,-1000.0,0.00023013,7]
[346076324,1734693078217,-500.0,0.00023013,6]
[346076325,1734693078227,-1000.0,0.00023013,7]
[346076326,1734693078237,-1000.0,0.00023013,7]
[346076327,1734693078247,-500.0,0.00023013,6]
[346076328,1734693078256,-1000.0,0.00023013,7]
[346076329,1734693078265,-1000.0,0.00023013,7]
[346076330,1734693078277,-500.0,0.00023013,6]
[346076331,1734693078287,-1000.0,0.00023013,7]
[346076332,1734693078297,-1000.0,0.00023013,7]
[346076333,1734693078306,-1000.0,0.00023013,7]
[346076334,1734693078315,-1000.0,0.00023013,7]
[346076335,1734693078325,-1000.0,0.00023013,7]
[346076336,1734693078334,-1000.0,0.00023013,7]
[346076337,1734693078344,-1000.0,0.00023013,7]
[346076338,1734693078354,-1000.0,0.00023013,7]
[346076339,1734693078363,-500.0,0.00023013,6]
[346076340,1734693078374,-1000.0,0.00023013,7]
[346076341,1734693078383,-3028.67,0.00023013,6]
[346076342,1734693078393,-1000.0,0.00023013,7]
[346076343,1734693078403,-1000.0,0.00023013,7]
[346076344,1734693078413,-500.0,0.00023013,6]
[346076345,1734693078425,-1000.0,0.00023013,7]
[346076346,1734693078436,-1000.0,0.00023013,7]
[346076347,1734693078446,-792.249485,0.00023013,7]
[346076348,1734693078462,-206.24040907,0.00023013,6]
[346076349,1734693078472,-662.01,0.00023013,6]
[346076350,1734693078482,-541.94682951,0.00023013,6]
[346076351,1734693078492,-500.0,0.00023013,6]
[346076352,1734693078502,-500.0,0.00023013,6]
[346076353,1734693078513,-400.89,0.00023013,6]
[346076354,1734693078524,-501.21310213,0.00023013,6]
[346076355,1734693078534,-500.0,0.00023013,6]
[346076356,1734693078544,-711.74,0.00023013,6]
[346076357,1734693078553,-500.0,0.00023013,6]
[346076358,1734693078563,-554.08,0.00023013,6]
[346076359,1734693078573,-500.0,0.00023013,6]
[346076360,1734693078583,-645.88,0.00023013,6]
[346076361,1734693078593,-500.0,0.00023013,6]
[346076362,1734693078602,-237.44499347,0.00023013,6]
[346076363,1734693078612,-500.0,0.00023013,6]
[346076364,1734693078622,-577.97,0.00023013,6]
[346076365,1734693078631,-646.76779218,0.00023013,6]
[346076366,1734693078640,-500.0,0.00023013,6]
[346076367,1734693078650,-1637.88,0.00023013,6]
[346076368,1734693078659,-500.0,0.00023013,6]
[346076369,1734693078668,-778.88,0.00023013,6]
[346076370,1734693078677,-500.0,0.00023013,6]
[346076371,1734693078686,-2108.73,0.00023013,6]
[346076372,1734693078695,-642.6,0.00023013,6]
[346076373,1734693078710,-500.0,0.00023013,6]
[346076374,1734693078719,-500.0,0.00023013,6]
[346076375,1734693078727,-993.42,0.00023013,6]
[346076376,1734693078737,-413.026202,0.00023013,7]
[346076377,1734693078746,-500.0,0.00023013,6]
[346076378,1734693078755,-500.0,0.00023013,6]
[346076379,1734693078765,-500.0,0.00023013,6]
[346076380,1734693078774,-500.0,0.00023013,6]
[346076381,1734693078783,-500.0,0.00023013,6]
[346076382,1734693078792,-413.026202,0.00023013,7]
[346076383,1734693078801,-1347.62,0.00023013,6]
[346076384,1734693078809,-1576.34,0.00023013,6]
[346076385,1734693078818,-500.0,0.00023013,6]
[346076386,1734693078828,-500.0,0.00023013,6]
[346076387,1734693078837,-559.19,0.00023013,6]
[346076388,1734693078847,-783.39,0.00023013,6]
[346076389,1734693078856,-500.0,0.00023013,6]
[346076390,1734693078865,-230.82950857,0.00023013,6]
[346076391,1734693078875,-500.0,0.00023013,6]
[346076392,1734693078884,-500.0,0.00023013,6]
[346076393,1734693078894,-816.89,0.00023013,6]
[346076394,1734693078903,-500.0,0.00023013,6]
[346076395,1734693078914,-150.08,0.00023013,6]
[346076396,1734693078923,-1486.6,0.00023013,6]
[346076397,1734693078933,-683.88,0.00023013,6]
[346076398,1734693078942,-500.0,0.00023013,6]
[346076399,1734693078954,-500.0,0.00023013,6]
[346076400,1734693078963,-500.0,0.00023013,6]
[346076401,1734693078973,-500.0,0.00023013,6]
[346076402,1734693078982,-500.0,0.00023013,6]
[346076403,1734693078992,-3350.69,0.00023013,6]
[346076404,1734693079001,-500.0,0.00023013,6]
[346076405,1734693079011,-3984.39,0.00023013,6]
[346076406,1734693079021,-500.0,0.00023013,6]
[346076407,1734693079031,-500.0,0.00023013,6]
[346076408,1734693079040,-657.82,0.00023013,6]
[346076409,1734693079050,-500.0,0.00023013,6]
[346076410,1734693079060,-363.57651582,0.00023013,6]
[346076411,1734693079070,-908.77,0.00023013,6]
[346076412,1734693079079,-3922.68197,0.00023013,7]
[346076413,1734693079090,-3922.68197,0.00023013,7]
[346076414,1734693079099,-500.0,0.00023013,6]
[346076415,1734693079108,-3922.68197,0.00023013,7]
[346076416,1734693079118,-500.0,0.00023013,6]
[346076417,1734693079128,-3922.68197,0.00023013,7]
[346076418,1734693079137,-500.0,0.00023013,6]
[346076419,1734693079147,-628.05,0.00023013,6]
[346076420,1734693079156,-500.0,0.00023013,6]
[346076421,1734693079166,-500.0,0.00023013,6]
[346076422,1734693079176,-579.5,0.00023013,6]
[346076423,1734693079185,-162.087698,0.00023013,7]
[346076424,1734693079195,-162.087698,0.00023013,7]
[346076425,1734693079207,-162.087698,0.00023013,7]
[346076426,1734693079217,-3405.57585,0.00023013,7]
[346076427,1734693079226,-162.087698,0.00023013,7]
[346076428,1734693079236,-750.31,0.00023013,6]
[346076429,1734693079245,-519.61,0.00023013,6]
[346076430,1734693079255,-500.0,0.00023013,6]
[346076431,1734693079264,-2341.45,0.00023013,6]
[346076432,1734693079274,-703.35,0.00023013,6]
[346076433,1734693079283,-3405.57585,0.00023013,7]
[346076434,1734693079293,-846.66,0.00023013,6]
[346076435,1734693079302,-500.0,0.00023013,6]
[346076436,1734693079312,-558.24,0.00023013,6]
[346076437,1734693079321,-500.0,0.00023013,6]
[346076438,1734693079461,-784.95,0.00023013,6]
[346076439,1734693079471,-929.35,0.00023013,6]
[346076440,1734693079481,-500.0,0.00023013,6]
[346076441,1734693079491,-218.39227178,0.00023013,6]
[346076442,1734693079501,-2078.12,0.00023013,6]
[346076443,1734693079512,-500.0,0.00023013,6]
[346076444,1734693079522,-500.0,0.00023013,6]
[346076445,1734693079532,-2253.32,0.00023013,6]
[346076446,1734693079542,-753.77,0.00023013,6]
[346076447,1734693079552,-1958.52,0.00023013,6]
[346076448,1734693079562,-928.58,0.00023013,6]
[346076449,1734693079572,-500.0,0.00023013,6]
[346076450,1734693079581,-500.0,0.00023013,6]
[346076451,1734693079591,-2612.84,0.00023013,6]
[346076452,1734693079601,-816.69,0.00023013,6]
[346076453,1734693079610,-500.0,0.00023013,6]
[346076454,1734693079620,-283.033407,0.00023013,7]
[346076455,1734693079630,-283.033407,0.00023013,7]
[346076456,1734693079639,-283.033407,0.00023013,7]
[346076457,1734693079649,-283.033407,0.00023013,7]
[346076458,1734693079658,-942.58,0.00023013,6]
[346076459,1734693079668,-998.57,0.00023013,6]
[346076460,1734693079678,-500.0,0.00023013,6]
[346076461,1734693079687,-500.0,0.00023013,6]
[346076462,1734693079697,-3375.68,0.00023013,6]
[346076463,1734693079709,-3019.62,0.00023013,6]
[346076464,1734693079719,-591.11,0.00023013,6]
[346076465,1734693079729,-500.0,0.00023013,6]
[346076466,1734693079739,-151.0,0.00023013,7]
[346076467,1734693079749,-829.78,0.00023013,6]
[346076468,1734693079758,-500.0,0.00023013,6]
[346076469,1734693079769,-500.0,0.00023013,6]
[346076470,1734693079778,-870.11,0.00023013,6]
[346076471,1734693079788,-2878.24,0.00023013,6]
[346076472,1734693079797,-500.0,0.00023013,6]
[346076473,1734693079807,-500.0,0.00023013,6]
[346076474,1734693079816,-500.0,0.00023013,6]
[346076475,1734693079825,-2093.85,0.00023013,6]
[346076476,1734693079835,-561.5,0.00023013,6]
[346076477,1734693079845,-1000.0,0.00023013,6]
[346076478,1734693079854,-500.0,0.00023013,6]
[346076479,1734693079864,-575.58,0.00023013,6]
[346076480,1734693079873,-500.0,0.00023013,6]
[346076481,1734693079883,-606.38,0.00023013,6]
[346076482,1734693079892,-500.0,0.00023013,6]
[346076483,1734693079902,-563.50823581,0.00023013,6]
[346076484,1734693079912,-1051.37,0.00023013,6]
[346076485,1734693079921,-500.0,0.00023013,6]
[346076486,1734693079930,-605.01,0.00023013,6]
[346076487,1734693079940,-1895.2,0.00023013,6]
[346076488,1734693079949,-1304.77,0.00023013,6]
[346076489,1734693079961,-978.44,0.00023013,6]
[346076490,1734693079971,-500.0,0.00023013,6]
[346076491,1734693079981,-500.0,0.00023013,6]
[346076492,1734693079990,-186.82888,0.00023013,7]
[346076493,1734693080000,-186.82888,0.00023013,7]
[346076494,1734693080009,-151.0,0.00023013,7]
[346076495,1734693080019,-151.0,0.00023013,7]
[346076496,1734693080029,-823.06,0.00023013,6]
[346076497,1734693080038,-1110.35,0.00023013,6]
[346076498,1734693080048,-15620.31,0.00023013,6]
[346076499,1734693080057,-3107.96,0.00023013,6]
[346076500,1734693080066,-186.82888,0.00023013,7]
[346076501,1734693080076,-189.753428,0.00023013,7]
[346076502,1734693080085,-186.82888,0.00023013,7]
[346076503,1734693080094,-1979.3,0.00023013,6]
[346076504,1734693080104,-189.753428,0.00023013,7]
[346076505,1734693080113,-1698.36,0.00023013,6]
[346076506,1734693080122,-1217.27,0.00023013,6]
[346076507,1734693080131,-1129.89,0.00023013,6]
[346076508,1734693080140,-500.0,0.00023013,6]
[346076509,1734693080149,-500.0,0.00023013,6]
[346076510,1734693080159,-3084.04,0.00023013,6]
[346076511,1734693080168,-500.0,0.00023013,6]
[346076512,1734693080177,-611.22,0.00023013,6]
[346076513,1734693080186,-500.0,0.00023013,6]
[346076514,1734693080195,-518.6994066,0.00023013,6]
[346076515,1734693080207,-1273.08209,0.00023013,7]
[346076516,1734693080217,-514.9,0.00023013,6]
[346076517,1734693080226,-1079.40644,0.00023013,7]
[346076518,1734693080235,-749.85,0.00023013,6]
[346076519,1734693080244,-1079.40644,0.00023013,7]
[346076520,1734693080253,-1709.27,0.00023013,6]
[346076521,1734693080263,-1273.08209,0.00023013,7]
[346076522,1734693080272,-1079.40644,0.00023013,7]
[346076523,1734693080281,-1079.40644,0.00023013,7]
[346076524,1734693080290,-631.5,0.00023013,6]
[346076525,1734693080299,-3926.23,0.00023013,6]
[346076526,1734693080309,-263.4199712,0.00023013,6]
[346076527,1734693080318,-681.759088,0.00023013,7]
[346076528,1734693080327,-681.759088,0.00023013,7]
[346076529,1734693080337,-8032.25,0.00023013,6]
[346076530,1734693080346,-957.95,0.00023013,6]
[346076531,1734693080355,-681.759088,0.00023013,7]
[346076532,1734693080365,-681.759088,0.00023013,7]
[346076533,1734693080374,-647.04,0.00023013,6]
[346076534,1734693080384,-151.0,0.00023013,7]
[346076535,1734693080393,-500.0,0.00023013,6]
[346076536,1734693080404,-151.0,0.00023013,7]
[346076537,1734693080413,-500.0,0.00023013,6]
[346076538,1734693080426,-880.3,0.00023013,6]
[346076539,1734693080436,-828.99,0.00023013,6]
[346076540,1734693080445,-500.0,0.00023013,6]
[346076541,1734693080457,-500.0,0.00023013,6]
[346076542,1734693080467,-552.30434419,0.00023013,6]
[346076543,1734693080476,-500.0,0.00023013,6]
[346076544,1734693080485,-1556.66,0.00023013,2]
[346076545,1734693080495,-500.0,0.00023013,6]
[346076546,1734693080505,-772.83,0.00023013,6]
[346076547,1734693080515,-933.46,0.00023013,6]
[346076548,1734693080524,-500.0,0.00023013,6]
[346076549,1734693080535,-727.74,0.00023013,6]
[346076550,1734693080544,-1507.13,0.00023013,6]
[346076551,1734693080554,-628.91,0.00023013,6]
[346076552,1734693080563,-500.0,0.00023013,6]
[346076553,1734693080573,-500.0,0.00023013,6]
[346076554,1734693080582,-1026.99,0.00023013,6]
[346076555,1734693080591,-20507.92,0.00023013,6]
[346076556,1734693080602,-1914.41,0.00023013,6]
[346076557,1734693080612,-945.69,0.00023013,6]
[346076558,1734693080622,-769.8,0.00023013,6]
[346076559,1734693080631,-31690.43,0.00023013,6]
[346076560,1734693080641,-10891.37,0.00023013,6]
[346076561,1734693080650,-500.0,0.00023013,6]
[346076562,1734693080660,-1881.92,0.00023013,6]
[346076563,1734693080670,-551.82,0.00023013,6]
[346076564,1734693080679,-500.0,0.00023013,6]
[346076565,1734693080689,-500.0,0.00023013,6]
[346076566,1734693080699,-741.52,0.00023013,6]
[346076567,1734693080709,-739.27,0.00023013,6]
[346076568,1734693080719,-599.48,0.00023013,6]
[346076569,1734693080729,-674.12,0.00023013,6]
[346076570,1734693080739,-500.0,0.00023013,6]
[346076571,1734693080748,-151.0,0.00023013,7]
[346076572,1734693080758,-151.0,0.00023013,7]
[346076573,1734693080767,-500.0,0.00023013,6]
[346076574,1734693080777,-1525.74,0.00023013,6]
[346076575,1734693080786,-82254.19,0.00023013,6]
[346076576,1734693080795,-5572.46,0.00023013,6]
[346076577,1734693080804,-500.0,0.00023013,6]
[346076578,1734693080814,-730.97,0.00023013,6]
[346076579,1734693080823,-623.84,0.00023013,6]
[346076580,1734693080832,-500.0,0.00023013,6]
[346076581,1734693080842,-500.0,0.00023013,6]
[346076582,1734693080852,-12564.99,0.00023013,6]
[346076583,1734693080862,-500.0,0.00023013,6]
[346076584,1734693080872,-734.96,0.00023013,6]
[346076585,1734693080881,-504.37464158,0.00023013,6]
[346076586,1734693080890,-774.73,0.00023013,6]
[346076587,1734693080900,-5780.94,0.00023013,6]
[346076588,1734693080909,-500.0,0.00023013,6]
[346076589,1734693080918,-150.08,0.00023013,2]
[346076590,1734693080928,-836.63,0.00023013,6]
[346076591,1734693080937,-504.07744573,0.00023013,6]
[346076592,1734693080947,-500.0,0.00023013,6]
[346076593,1734693080960,-527.3,0.00023013,6]
[346076594,1734693080969,-5039.08,0.00023013,6]
[346076595,1734693080979,-500.0,0.00023013,6]
[346076596,1734693080988,-500.0,0.00023013,6]
[346076597,1734693080998,-2098.69,0.00023013,6]
[346076598,1734693081007,-1080.46,0.00023013,6]
[346076599,1734693081016,-648.6,0.00023013,6]
[346076600,1734693081025,-603.16,0.00023013,6]
[346076601,1734693081034,-4746.74,0.00023013,6]
[346076602,1734693081043,-3087.43,0.00023013,6]
[346076603,1734693081052,-501.84,0.00023013,6]
[346076604,1734693081062,-1141.775585,0.00023013,7]
[346076605,1734693081072,-1141.775585,0.00023013,7]
[346076606,1734693081080,-500.0,0.00023013,6]
[346076607,1734693081089,-895.12,0.00023013,6]
[346076608,1734693081098,-500.0,0.00023013,6]
[346076609,1734693081107,-1141.775585,0.00023013,7]
[346076610,1734693081117,-1141.775585,0.00023013,7]
[346076611,1734693081126,-906.86,0.00023013,6]
[346076612,1734693081135,-500.0,0.00023013,6]
[346076613,1734693081145,-645.86,0.00023013,6]
[346076614,1734693081154,-796.51,0.00023013,6]
[346076615,1734693081163,-4289.65,0.00023013,6]
[346076616,1734693081174,-1129.09,0.00023013,6]
[346076617,1734693081183,-641.11,0.00023013,6]
[346076618,1734693081193,-1127.64,0.00023013,6]
[346076619,1734693081203,-31466.27,0.00023013,6]
[346076620,1734693081213,-797.8,0.00023013,6]
[346076621,1734693081223,-500.0,0.00023013,6]
[346076622,1734693081232,-509.43864275,0.00023013,6]
[346076623,1734693081351,-500.0,0.00023013,6]
[346076624,1734693081360,-996.74,0.00023013,6]
[346076625,1734693081370,-500.0,0.00023013,6]
[346076626,1734693081379,-500.0,0.00023013,6]
[346076627,1734693081388,-1422.15,0.00023013,6]
[346076628,1734693081397,-500.0,0.00023013,6]
[346076629,1734693081406,-1104.77,0.00023013,6]
[346076630,1734693081416,-500.0,0.00023013,6]
[346076631,1734693081428,-505.39,0.00023013,6]
[346076632,1734693081438,-7845.89,0.00023013,6]
[346076633,1734693081447,-4838.119892,0.00023013,7]
[346076634,1734693081459,-953.99,0.00023013,6]
[346076635,1734693081468,-504.39930255,0.00023013,6]
[346076636,1734693081476,-500.0,0.00023013,6]
[346076637,1734693081485,-4901.08,0.00023013,6]
[346076638,1734693081495,-4838.119892,0.00023013,7]
[346076639,1734693081504,-1667.65,0.00023013,6]
[346076640,1734693081513,-500.0,0.00023013,6]
[346076641,1734693081522,-500.0,0.00023013,6]
[346076642,1734693081531,-500.0,0.00023013,6]
[346076643,1734693081540,-500.0,0.00023013,6]
[346076644,1734693081550,-989.18,0.00023013,6]
[346076645,1734693081559,-151.0,0.00023013,7]
[346076646,1734693081568,-151.0,0.00023013,7]
[346076647,1734693081577,-500.0,0.00023013,6]
[346076648,1734693081588,-871.64,0.00023013,6]
[346076649,1734693081598,-4701.04,0.00023013,6]
[346076650,1734693081607,-151.0,0.00023013,7]
[346076651,1734693081617,-1915.75,0.00023013,6]
[346076652,1734693081627,-500.0,0.00023013,6]
[346076653,1734693081637,-151.0,0.00023013,7]
[346076654,1734693081646,-10035.19,0.00023013,6]
[346076655,1734693081656,-1877.64,0.00023013,6]
[346076656,1734693081666,-1244.76,0.00023013,2]
[346076657,1734693081675,-335.036907,0.00023013,7]
[346076658,1734693081685,-7749.62,0.00023013,6]
[346076659,1734693081694,-335.036907,0.00023013,7]
[346076660,1734693081705,-500.0,0.00023013,6]
[346076661,1734693081715,-525.89952962,0.00023013,6]
[346076662,1734693081725,-2173.89,0.00023013,6]
[346076663,1734693081736,-5377.96,0.00023013,6]
[346076664,1734693081745,-2633.81,0.00023013,6]
[346076665,1734693081755,-335.036907,0.00023013,7]
[346076666,1734693081765,-335.036907,0.00023013,7]
[346076667,1734693081774,-512.84173507,0.00023013,6]
[346076668,1734693081784,-2682.03,0.00023013,6]
[346076669,1734693081793,-500.0,0.00023013,6]
[346076670,1734693081803,-500.0,0.00023013,6]
[346076671,1734693081812,-500.0,0.00023013,6]
[346076672,1734693081822,-151.386173,0.00023013,7]
[346076673,1734693081831,-151.386173,0.00023013,7]
[346076674,1734693081841,-500.0,0.00023013,6]
[346076675,1734693081850,-568.8,0.00023013,6]
[346076676,1734693081860,-151.0,0.00023013,7]
[346076677,1734693081870,-500.0,0.00023013,6]
[346076678,1734693081879,-151.0,0.00023013,7]
[346076679,1734693081888,-500.0,0.00023013,6]
[346076680,1734693081898,-1371.8,0.00023013,6]
[346076681,1734693081907,-151.386173,0.00023013,7]
[346076682,1734693081917,-151.386173,0.00023013,7]
[346076683,1734693081926,-500.0,0.00023013,6]
[346076684,1734693081936,-151.0,0.00023013,7]
[346076685,1734693081946,-151.0,0.00023013,7]
[346076686,1734693081959,-246.329835,0.00023013,7]
[346076687,1734693081969,-246.329835,0.00023013,7]
[346076688,1734693081979,-500.0,0.00023013,6]
[346076689,1734693081989,-4069.31,0.00023013,6]
[346076690,1734693081999,-500.0,0.00023013,6]
[346076691,1734693082009,-4673.27,0.00023013,6]
[346076692,1734693082018,-500.0,0.00023013,6]
[346076693,1734693082028,-246.329835,0.00023013,7]
[346076694,1734693082038,-246.329835,0.00023013,7]
[346076695,1734693082047,-566.02,0.00023013,6]
[346076696,1734693082056,-2791.17,0.00023013,6]
[346076697,1734693082066,-503.87,0.00023013,6]
[346076698,1734693082075,-1647.66,0.00023013,6]
[346076699,1734693082085,-500.0,0.00023013,6]
[346076700,1734693082094,-500.0,0.00023013,6]
[346076701,1734693082103,-500.0,0.00023013,6]
[346076702,1734693082113,-650.66,0.00023013,6]
[346076703,1734693082122,-2005.93,0.00023013,6]
[346076704,1734693082132,-500.0,0.00023013,6]
[346076705,1734693082142,-537.75,0.00023013,6]
[346076706,1734693082151,-1424.07,0.00023013,6]
[346076707,1734693082161,-500.0,0.00023013,6]
[346076708,1734693082171,-907.39,0.00023013,6]
[346076709,1734693082186,-1508.58,0.00023013,6]
[346076710,1734693082207,-500.0,0.00023013,2]
[346076711,1734693082224,-668.4,0.00023013,6]
[346076712,1734693082243,-564.28,0.00023013,6]
[346076713,1734693082263,-500.0,0.00023013,6]
[346076714,1734693082281,-1278.74,0.00023013,6]
[346076715,1734693082300,-800.05,0.00023013,6]
[346076716,1734693082314,-2906.3,0.00023013,6]
[346076717,1734693082331,-500.0,0.00023013,6]
[346076718,1734693082350,-1066.82,0.00023013,6]
[346076719,1734693082371,-260.43498685,0.00023013,6]
[346076720,1734693082384,-4154.09,0.00023013,6]
[346076721,1734693082403,-2034.35,0.00023013,6]
[346076722,1734693082419,-443.0,0.00023014,2]
[346076723,1734693082437,-161.0,0.00023014,2]
[346076724,1734693082450,-151.0,0.0002302,6]
[346076725,1734693082469,-1000.0,0.00023021,2]
[346076726,1734693082484,-1000.0,0.00023021,2]
[346076727,1734693082499,-544.44234686,0.00023021,2]
[346076728,1734693082515,-153.0,0.00023064,2]
[346076729,1734693082531,-1480.54287505,0.00023141,2]
[346076730,1734693082546,-151.0,0.00023175,6]
[346076731,1734693082562,-14579.48803626,0.00023176,10]
[346076732,1734693082576,-151.0,0.00023176,7]
[346076733,1734693082591,-151.0,0.00023176,7]
[346076734,1734693082605,-151.0,0.00023176,7]
[346076735,1734693082620,-151.0,0.00023176,7]
[346076736,1734693082634,-151.0,0.00023176,7]
[346076737,1734693082648,-151.0,0.00023176,7]
[346076738,1734693082662,-151.0,0.00023176,7]
[346076739,1734693082678,-151.0,0.00023176,7]
[346076740,1734693082692,-3405.57585,0.00023176,7]
[346076741,1734693082709,-3405.57585,0.00023176,7]